bitfinex/quotes_BTCUSD_20250313
["timestamp","ask_amount","ask_price","bid_price","bid_amount"]
[1741893817249,0.02517845,80866.0,80864.0,0.259692]
[1741893818249,0.02517845,80866.0,80864.0,0.012366]
[1741893818574,0.02517845,80866.0,80865.0,0.012366]
[1741893820396,0.02517845,80866.0,80865.0,0.013366]
[1741893820813,0.0003376,80872.0,80871.0,0.012365]
[1741893821072,0.0003376,80872.0,80871.0,0.259672]
[1741893821662,0.0003376,80872.0,80869.0,0.24731]
[1741893821960,0.0003376,80872.0,80871.0,0.012365]
[1741893822263,0.259677,80870.0,80864.0,0.259692]
[1741893822445,0.247321,80867.0,80862.0,0.247333]
[1741893822644,0.012365,80868.0,80862.0,0.247333]
[1741893822645,0.012365,80868.0,80863.0,0.24733]
[1741893823449,0.259683,80868.0,80863.0,0.012366]
[1741893823996,0.259683,80868.0,80863.0,0.259695]
[1741893824146,0.012365,80871.0,80867.0,0.247318]
[1741893824545,0.259674,80871.0,80865.0,0.259689]
[1741893824770,0.28481791,80872.0,80866.0,0.012366]
[1741893824975,0.247309,80871.0,80866.0,0.259686]
[1741893825600,0.247315,80869.0,80864.0,0.247327]
[1741893825798,0.247318,80868.0,80863.0,0.259697]
[1741893826161,0.012365,80870.0,80864.0,0.259693]
[1741893826828,0.012365,80870.0,80865.0,0.012366]
[1741893827377,0.259677,80870.0,80865.0,0.259689]
[1741893828029,0.247328,80865.0,80861.0,0.012366]
[1741893828232,0.012365,80867.0,80860.0,0.012367]
[1741893828467,0.012366,80866.0,80860.0,0.012367]
[1741893828684,0.247319,80867.0,80855.0,0.0001688]
[1741893828685,0.259717,80857.0,80855.0,0.0001688]
[1741893828897,0.259736,80851.0,80834.0,0.0811]
[1741893829110,0.012369,80841.0,80833.0,0.012371]
[1741893829312,0.247413,80837.0,80831.0,0.012371]
[1741893829443,0.247413,80837.0,80823.0,0.328751]
[1741893829444,0.012371,80829.0,80823.0,0.328751]
[1741893829631,0.01237,80836.0,80829.0,0.259804]
[1741893829632,0.02529023,80835.0,80829.0,0.259804]
[1741893829829,0.02529023,80835.0,80831.0,0.247429]
[1741893830025,0.03542773,80834.0,80831.0,0.247429]
[1741893830273,0.02529023,80835.0,80834.0,0.012371]
[1741893831540,0.02529023,80835.0,80834.0,0.013371]
[1741893833184,0.02529023,80835.0,80834.0,0.015371]
[1741893833404,0.7854,80850.0,80844.0,0.259759]
[1741893833605,0.78544156,80850.0,80845.0,0.259753]
[1741893833930,0.02495786,80846.0,80844.0,0.012369]
[1741893834837,0.02495786,80846.0,80844.0,0.259756]
[1741893835039,0.02495786,80846.0,80845.0,0.012369]
[1741893835237,0.02595786,80846.0,80845.0,0.247386]
[1741893835473,0.02595786,80846.0,80843.0,0.247391]
[1741893835667,0.02595786,80846.0,80845.0,0.247386]
[1741893835866,0.02595786,80846.0,80845.0,0.259755]
[1741893836094,0.02495786,80846.0,80845.0,0.259755]
[1741893836286,0.02595786,80846.0,80845.0,0.259755]
[1741893836444,0.02695786,80846.0,80845.0,0.259755]
[1741893836649,0.03452503,80846.0,80843.0,0.247391]
[1741893837667,0.03452503,80846.0,80842.0,0.012369]
[1741893837668,0.03352503,80846.0,80841.0,0.259767]
[1741893837985,0.012369,80841.0,80835.0,0.247415]
[1741893838188,0.25976,80844.0,80838.0,0.01237]
[1741893838397,0.0075913,80840.0,80838.0,0.259777]
[1741893838591,0.02595786,80846.0,80839.0,0.247402]
[1741893838592,0.247387,80845.0,80839.0,0.247402]
[1741893838748,0.247387,80845.0,80839.0,0.259772]
[1741893838951,0.00758006,80844.0,80839.0,0.259772]
[1741893839280,0.00758006,80844.0,80842.0,0.259763]
[1741893839448,0.02495786,80846.0,80840.0,0.01237]
[1741893839692,0.25496906,80845.0,80840.0,0.01237]
[1741893839884,0.25496906,80845.0,80844.0,0.259759]
[1741893839885,0.00758006,80845.0,80844.0,0.259759]
[1741893840215,0.00758006,80845.0,80844.0,0.335859]
[1741893840419,0.00758006,80845.0,80844.0,0.258759]
[1741893840633,0.02502794,80848.0,80846.0,0.012369]
[1741893840755,0.02502794,80848.0,80846.0,0.25975]
[1741893840945,0.00758006,80847.0,80846.0,0.25975]
[1741893841590,0.02502794,80848.0,80846.0,0.25975]
[1741893841819,0.02502794,80848.0,80847.0,0.012369]
[1741893842007,0.78544156,80850.0,80849.0,0.088768]
[1741893842319,4.156e-05,80850.0,80849.0,0.088768]
[1741893843292,4.156e-05,80850.0,80849.0,0.25730571]
[1741893843514,4.156e-05,80850.0,80849.0,0.25606899]
[1741893844376,4.156e-05,80850.0,80849.0,0.40598899]
[1741893845122,4.156e-05,80850.0,80849.0,0.41098899]
[1741893845318,4.156e-05,80850.0,80849.0,0.40598899]
[1741893845722,4.156e-05,80850.0,80849.0,0.41098899]
[1741893846162,4.156e-05,80850.0,80849.0,0.41598899]
[1741893846723,0.4608659,80874.0,80873.0,0.259666]
[1741893846931,0.46128157,80874.0,80873.0,0.259666]
[1741893848212,0.00041567,80874.0,80873.0,0.259666]
[1741893850299,0.012365,80869.0,80860.0,0.012367]
[1741893850537,0.247309,80871.0,80865.0,0.247324]
[1741893850759,0.247312,80870.0,80863.0,0.259695]
[1741893850989,0.247322,80867.0,80861.0,0.247335]
[1741893851166,0.247325,80866.0,80861.0,0.012366]
[1741893851427,0.012365,80870.0,80860.0,0.012367]
[1741893851683,0.00779972,80865.0,80863.0,0.259695]
[1741893851908,0.02468983,80866.0,80861.0,0.247335]
[1741893852079,0.02468983,80866.0,80863.0,0.247329]
[1741893852511,0.00776101,80865.0,80863.0,0.012366]
[1741893852728,0.00776101,80865.0,80861.0,0.260701]
[1741893852870,0.00776101,80865.0,80863.0,0.001]
[1741893853305,0.259694,80864.0,80863.0,0.001]
[1741893853505,0.259694,80864.0,80861.0,0.001]
[1741893853506,0.2597,80862.0,80861.0,0.001]
[1741893853708,0.00543,80849.0,80845.0,0.259753]
[1741893853922,0.00543,80849.0,80846.0,0.25975]
[1741893854155,0.012369,80845.0,80840.0,0.0001688]
[1741893854573,0.00772847,80844.0,80840.0,0.0001688]
[1741893854799,0.247383,80846.0,80845.0,0.003]
[1741893855021,0.247383,80846.0,80840.0,0.2599388]
[1741893855217,0.247383,80846.0,80841.0,0.259765]
[1741893855857,0.012369,80847.0,80841.0,0.259765]
[1741893856060,0.259752,80846.0,80845.0,0.001]
[1741893856258,0.012369,80846.0,80845.0,0.001]
[1741893856460,0.0003378,80846.0,80845.0,0.001]
[1741893856791,0.0127068,80846.0,80845.0,0.001]
[1741893857350,0.012369,80844.0,80840.0,0.00021036]
[1741893857696,0.012369,80844.0,80841.0,0.001]
[1741893857897,0.012369,80844.0,80840.0,0.00021036]
[1741893857898,0.259764,80843.0,80840.0,0.00021036]
[1741893858308,0.259767,80842.0,80840.0,0.00021036]
[1741893858540,0.012369,80841.0,80840.0,0.00021036]
[1741893858814,0.012369,80841.0,80840.0,0.00221036]
[1741893859448,0.012369,80841.0,80840.0,0.00021036]
[1741893859908,0.012369,80841.0,80840.0,0.00321036]
[1741893860974,0.012369,80841.0,80840.0,0.00521036]
[1741893861181,0.012369,80841.0,80840.0,0.00021036]
[1741893861387,0.012369,80841.0,80840.0,0.00121036]
[1741893861707,0.02690985,80841.0,80840.0,0.00221036]
[1741893862290,0.03641234,80841.0,80840.0,0.00221036]
[1741893862684,0.44591234,80841.0,80840.0,0.00221036]
[1741893864020,0.44591234,80841.0,80840.0,0.00121036]
[1741893864257,0.44691234,80841.0,80840.0,0.00021036]
[1741893864382,0.24990991,80841.0,80840.0,0.00021036]
[1741893865028,0.26227891,80841.0,80840.0,0.00021036]
[1741893865856,0.27164268,80841.0,80840.0,0.00021036]
[1741893866075,1.05736268,80841.0,80840.0,0.00021036]
[1741893866280,1.04499368,80841.0,80840.0,0.00021036]
[1741893866437,1.05736268,80841.0,80840.0,0.00021036]
[1741893867013,1.0639059,80841.0,80840.0,0.00021036]
[1741893867335,1.0649059,80841.0,80840.0,0.00021036]
[1741893867664,1.0669059,80841.0,80840.0,0.00021036]
[1741893872724,1.1041099,80841.0,80840.0,0.00021036]
[1741893876576,1.11865075,80841.0,80840.0,0.00021036]
[1741893876834,1.11865075,80841.0,80817.0,0.0784]
[1741893876835,0.012373,80818.0,80817.0,0.05922348]
[1741893877045,0.012373,80818.0,80806.0,0.259879]
[1741893877046,0.012374,80814.0,80806.0,0.259879]
[1741893877261,0.259855,80814.0,80808.0,0.012375]
[1741893877410,0.012373,80816.0,80810.0,0.247492]
[1741893877633,0.259847,80817.0,80810.0,0.259866]
[1741893877634,0.00750954,80814.0,80810.0,0.259866]
[1741893877833,0.012373,80818.0,80812.0,0.259859]
[1741893878033,0.00750954,80814.0,80813.0,0.060574]
[1741893878233,0.247459,80822.0,80817.0,0.015373]
[1741893878463,0.247462,80821.0,80817.0,0.015373]
[1741893878636,0.25497154,80821.0,80817.0,0.015373]
[1741893878838,0.02189257,80821.0,80820.0,0.012373]
[1741893879745,0.02189257,80821.0,80819.0,0.0775]
[1741893879959,0.02189257,80821.0,80819.0,0.07626009]
[1741893880345,0.0593065,80821.0,80819.0,0.07626009]
[1741893880746,0.247463,80820.0,80819.0,0.07626009]
[1741893880953,0.05179696,80821.0,80819.0,0.07626009]
[1741893881151,0.00750954,80820.0,80819.0,0.07626009]
[1741893882482,0.01988254,80820.0,80819.0,0.07626009]
[1741893884359,0.01988254,80820.0,80813.0,0.048369]
[1741893884360,0.259855,80814.0,80813.0,0.000169]
[1741893884491,0.25989,80803.0,80794.0,0.0455692]
[1741893884703,0.26733854,80803.0,80794.0,0.1222692]
[1741893884972,0.247524,80800.0,80794.0,0.1222692]
[1741893885192,0.012376,80801.0,80796.0,0.247536]
[1741893885322,0.00744684,80800.0,80795.0,0.247537]
[1741893885507,0.2599,80800.0,80794.0,0.0001692]
[1741893885710,0.26734684,80800.0,80794.0,0.0001692]
[1741893886856,0.01982284,80800.0,80795.0,0.247537]
[1741893887391,0.01982284,80800.0,80794.0,0.0001692]
[1741893887765,0.01982284,80800.0,80794.0,0.2600862]
[1741893887968,0.00744684,80800.0,80798.0,0.012376]
[1741893888172,0.03661929,80803.0,80795.0,0.012377]
[1741893888173,0.012376,80801.0,80796.0,0.25991]
[1741893888373,0.00831577,80800.0,80796.0,0.25991]
[1741893888714,0.00831577,80800.0,80799.0,0.2408606]
[1741893888996,0.001,80800.0,80799.0,0.2408606]
[1741893889755,0.00831577,80800.0,80799.0,0.2408606]
[1741893889960,0.00831577,80800.0,80799.0,0.23962039]
[1741893891005,0.00831577,80800.0,80797.0,0.2476992]
[1741893891410,0.00831577,80800.0,80797.0,0.2600752]
[1741893892222,0.00731577,80800.0,80798.0,0.259905]
[1741893892455,0.00831577,80800.0,80799.0,0.012376]
[1741893892622,0.001,80800.0,80799.0,0.139476]
[1741893892827,0.00831577,80800.0,80799.0,0.139476]
[1741893893030,0.001,80800.0,80799.0,0.139476]
[1741893894838,0.02473244,80805.0,80804.0,0.012375]
[1741893895061,0.02473244,80805.0,80804.0,0.258887]
[1741893895218,0.03205358,80805.0,80804.0,0.258887]
[1741893895428,0.03205358,80805.0,80801.0,0.012376]
[1741893895429,0.259816,80827.0,80814.0,0.012374]
[1741893895627,0.012371,80830.0,80822.0,0.247457]
[1741893895831,0.247462,80821.0,80817.0,0.0753]
[1741893896059,0.01246444,80823.0,80799.0,0.000169]
[1741893896060,0.247481,80814.0,80808.0,0.2475]
[1741893896248,0.247496,80810.0,80807.0,0.0737]
[1741893896690,0.00735442,80809.0,80807.0,0.0737]
[1741893896889,0.00735442,80809.0,80807.0,0.321201]
[1741893897085,0.00735442,80809.0,80808.0,0.012375]
[1741893897299,0.259852,80815.0,80809.0,0.259871]
[1741893898089,0.25985,80816.0,80810.0,0.012374]
[1741893898311,0.25985,80816.0,80809.0,0.259871]
[1741893898312,0.012374,80812.0,80807.0,0.0737]
[1741893898474,0.012374,80812.0,80807.0,0.0747]
[1741893898672,0.247493,80811.0,80807.0,0.0747]
[1741893898873,0.012374,80812.0,80807.0,0.333576]
[1741893899310,0.247494,80810.0,80807.0,0.0737]
[1741893899835,0.02462681,80808.0,80807.0,0.0737]
[1741893900184,0.02462681,80808.0,80806.0,0.247504]
[1741893900391,0.02462681,80808.0,80807.0,0.012375]
[1741893900576,0.02462681,80808.0,80804.0,0.0452]
[1741893900782,0.02462681,80808.0,80795.0,0.247539]
[1741893900783,0.012376,80800.0,80799.0,0.000169]
[1741893900984,0.259892,80803.0,80799.0,0.000169]
[1741893901237,0.012375,80805.0,80800.0,0.259898]
[1741893901446,0.247508,80806.0,80801.0,0.012376]
[1741893901661,0.02462681,80808.0,80807.0,0.001]
[1741893902137,0.02462681,80808.0,80807.0,0.012375]
[1741893902295,0.02462681,80808.0,80806.0,0.259878]
[1741893902478,0.02462681,80808.0,80807.0,0.247503]
[1741893902678,0.02462681,80808.0,80807.0,0.259878]
[1741893902900,0.03195912,80808.0,80804.0,0.012375]
[1741893903098,0.03195912,80808.0,80805.0,0.259882]
[1741893903295,0.03195912,80808.0,80807.0,0.012375]
[1741893903503,0.03195912,80808.0,80807.0,0.093075]
[1741893903707,0.00923374,80816.0,80807.0,0.093075]
[1741893903708,0.00923374,80816.0,80814.0,0.259855]
[1741893903926,0.259809,80829.0,80814.0,0.259855]
[1741893903927,0.79333614,80815.0,80814.0,0.259855]
[1741893905103,0.79333614,80815.0,80814.0,0.260855]
[1741893905340,0.79333614,80815.0,80814.0,0.261855]
[1741893906973,0.79333614,80815.0,80814.0,0.26014522]
[1741893907387,0.52931118,80815.0,80814.0,0.26014522]
[1741893907770,0.52964918,80815.0,80814.0,0.26014522]
[1741893908171,0.52964918,80815.0,80814.0,0.002]
[1741893908172,0.54202218,80815.0,80814.0,0.002]
[1741893908880,0.54202218,80815.0,80814.0,0.001]
[1741893909081,0.247491,80811.0,80807.0,0.1296]
[1741893909484,0.00739913,80810.0,80807.0,0.389476]
[1741893909729,0.012374,80811.0,80807.0,0.1296]
[1741893909908,0.247503,80807.0,80804.0,0.000169]
[1741893910102,0.259884,80805.0,80804.0,0.000169]
[1741893910307,0.259875,80808.0,80804.0,0.000169]
[1741893910507,0.247509,80805.0,80804.0,0.000169]
[1741893910824,0.259884,80805.0,80804.0,0.000169]
[1741893911002,0.26728313,80805.0,80804.0,0.000169]
[1741893911393,0.26728313,80805.0,80804.0,0.001169]
[1741893912030,0.26728313,80805.0,80804.0,0.002169]
[1741893912286,0.26728313,80805.0,80804.0,0.001169]
[1741893912441,0.26728313,80805.0,80804.0,0.000169]
[1741893912635,0.26728313,80805.0,80804.0,0.001169]
[1741893912973,0.26728313,80805.0,80804.0,0.000169]
[1741893913941,0.29224635,80805.0,80804.0,0.002169]
[1741893914142,0.03236235,80805.0,80804.0,0.002169]
[1741893914392,0.03236235,80805.0,80804.0,0.001169]
[1741893914597,0.29224635,80805.0,80804.0,0.001169]
[1741893914801,0.29224635,80805.0,80804.0,0.002169]
[1741893915114,0.59224635,80805.0,80804.0,0.002169]
[1741893915363,0.62768766,80805.0,80804.0,0.002169]
[1741893915945,0.012377,80795.0,80775.0,0.0001688]
[1741893916161,0.259996,80770.0,80768.0,0.0001688]
[1741893916357,0.259996,80770.0,80746.0,0.012384]
[1741893916358,0.012381,80765.0,80764.0,1e-08]
[1741893916536,0.560013,80765.0,80764.0,1e-08]
[1741893916740,0.31947781,80765.0,80764.0,1e-08]
[1741893917259,0.02456914,80765.0,80764.0,1e-08]
[1741893917470,0.03077626,80765.0,80764.0,0.00041407]
[1741893917641,0.04315726,80765.0,80764.0,0.00041407]
[1741893918199,0.04525022,80765.0,80764.0,0.01279507]
[1741893918401,0.04525022,80765.0,80764.0,0.00041407]
[1741893918545,0.04525022,80765.0,80764.0,0.01279507]
[1741893918763,0.04525022,80765.0,80764.0,0.00041407]
[1741893919595,0.05763122,80765.0,80764.0,0.00041407]
[1741893920757,0.04525022,80765.0,80764.0,0.00141407]
[1741893920983,0.04525022,80765.0,80764.0,0.26143007]
[1741893921115,0.04525022,80765.0,80764.0,0.01279507]
[1741893921310,0.04525022,80765.0,80764.0,0.00041407]
[1741893921520,0.04525022,80765.0,80764.0,0.00141407]
[1741893921719,0.30526322,80765.0,80764.0,0.00141407]
[1741893922515,0.30314548,80765.0,80764.0,0.00141407]
[1741893924423,0.30514548,80765.0,80764.0,0.00041407]
[1741893924915,0.66403307,80765.0,80764.0,7e-08]
[1741893925118,0.247708,80740.0,80733.0,0.260116]
[1741893925342,0.01212877,80740.0,80733.0,0.260116]
[1741893925551,0.01212877,80740.0,80728.0,0.247744]
[1741893925552,0.012386,80731.0,80713.0,0.247789]
[1741893925750,0.012386,80731.0,80700.0,0.01]
[1741893925751,0.01244264,80730.0,80727.0,0.247748]
[1741893925906,0.01244264,80730.0,80729.0,0.012387]
[1741893926519,0.01244264,80730.0,80726.0,0.260137]
[1741893926520,0.018456,80730.0,80726.0,0.260137]
[1741893926740,0.012388,80719.0,80707.0,0.076348]
[1741893926935,0.012388,80722.0,80701.0,0.260217]
[1741893926936,0.01948739,80718.0,80701.0,0.260217]
[1741893927140,0.2023307,80711.0,80708.0,0.01239]
[1741893927322,0.01378561,80711.0,80710.0,0.01239]
[1741893928099,0.03920896,80711.0,80710.0,0.01239]
[1741893928302,0.03962363,80711.0,80710.0,0.01239]
[1741893928820,0.06249313,80711.0,80710.0,0.01239]
[1741893929031,0.06827373,80711.0,80710.0,0.01239]
[1741893929184,0.06827373,80711.0,80709.0,0.247803]
[1741893929387,0.01374722,80710.0,80709.0,0.247803]
[1741893929578,0.01952603,80710.0,80709.0,0.260193]
[1741893929786,0.260164,80718.0,80712.0,0.012389]
[1741893930062,0.012388,80717.0,80712.0,0.012389]
[1741893930265,0.0217679,80719.0,80710.0,0.248799]
[1741893930544,0.78636,80739.0,80729.0,0.260129]
[1741893930901,0.02479189,80730.0,80729.0,0.260129]
[1741893931129,0.78636,80739.0,80729.0,0.260129]
[1741893931130,0.80011707,80739.0,80738.0,0.260099]
[1741893932002,0.82501085,80739.0,80738.0,0.260099]
[1741893932402,0.82501085,80739.0,80738.0,0.26022344]
[1741893932842,0.81125378,80739.0,80738.0,0.26022344]
[1741893933086,0.78636,80739.0,80738.0,0.26022344]
[1741893933536,0.0138269,80740.0,80739.0,0.012385]
[1741893933926,0.260067,80749.0,80743.0,0.260081]
[1741893934122,0.260062,80750.0,80745.0,0.260075]
[1741893934374,0.247675,80751.0,80745.0,0.012384]
[1741893934742,1.046733,80753.0,80744.0,0.012384]
[1741893934942,0.799063,80753.0,80744.0,0.260077]
[1741893935155,0.001,80749.0,80746.0,0.260071]
[1741893935582,0.80064936,80753.0,80749.0,0.247678]
[1741893935761,1.10064936,80753.0,80752.0,0.247671]
[1741893935960,0.012383,80750.0,80745.0,0.012384]
[1741893936189,0.012383,80750.0,80744.0,0.260077]
[1741893936394,0.012383,80750.0,80732.0,0.24773]
[1741893936395,0.012385,80742.0,80734.0,0.012386]
[1741893936720,0.3,80743.0,80736.0,0.012386]
[1741893937101,0.3,80743.0,80739.0,0.012385]
[1741893937544,0.00316766,80742.0,80737.0,0.247715]
[1741893937674,0.00316766,80742.0,80738.0,0.24783644]
[1741893937858,0.312385,80739.0,80738.0,0.00012444]
[1741893938275,0.30475149,80739.0,80738.0,0.01250944]
[1741893938649,0.00475149,80739.0,80738.0,0.00012444]
[1741893938857,0.02488488,80740.0,80739.0,0.247711]
[1741893938978,0.02488488,80740.0,80738.0,0.26022044]
[1741893939176,0.02962063,80740.0,80739.0,0.001]
[1741893939784,0.02962063,80740.0,80739.0,0.002]
[1741893940233,0.02962063,80740.0,80739.0,0.001]
[1741893940430,0.02962063,80740.0,80739.0,0.002]
[1741893940655,0.02962063,80740.0,80739.0,0.013385]
[1741893940866,0.02962063,80740.0,80739.0,0.012385]
[1741893941857,0.02488488,80740.0,80739.0,0.012385]
[1741893943321,0.02488488,80740.0,80739.0,0.013385]
[1741893943525,0.02488488,80740.0,80739.0,0.012385]
[1741893943738,0.02522328,80740.0,80739.0,0.013385]
[1741893943954,0.02522328,80740.0,80739.0,0.015385]
[1741893944095,0.02522328,80740.0,80739.0,0.012385]
[1741893944498,0.02522328,80740.0,80739.0,0.016385]
[1741893945664,0.02522328,80740.0,80739.0,0.03092585]
[1741893946534,0.029955,80740.0,80739.0,0.03092585]
[1741893946758,0.029955,80740.0,80739.0,0.004]
[1741893947057,0.029955,80740.0,80739.0,0.016385]
[1741893947440,0.029955,80740.0,80739.0,0.004]
[1741893948831,0.04234,80740.0,80739.0,0.004]
[1741893949343,0.029955,80740.0,80739.0,0.004]
[1741893950140,0.04234,80740.0,80739.0,0.004]
[1741893950525,0.029955,80740.0,80739.0,0.004]
[1741893951369,0.34234,80740.0,80739.0,0.004]
[1741893952144,0.34234,80740.0,80739.0,0.002]
[1741893952351,0.377759,80740.0,80739.0,0.002]
[1741893953370,0.560096,80739.0,80738.0,0.00012444]
[1741893953575,0.595515,80739.0,80738.0,0.00012444]
[1741893953776,0.60026901,80739.0,80738.0,0.00012444]
[1741893954196,0.7202299,80739.0,80738.0,0.00012444]
[1741893955006,0.7222299,80739.0,80738.0,0.00012444]
[1741893955407,0.247773,80719.0,80718.0,0.0001691]
[1741893955665,0.012388,80719.0,80718.0,0.00029391]
[1741893955867,0.01708722,80719.0,80718.0,0.00029391]
[1741893956042,0.00469922,80719.0,80718.0,0.00029391]
[1741893956272,0.260154,80722.0,80718.0,0.00029391]
[1741893956273,0.260157,80721.0,80718.0,0.00029391]
[1741893956478,0.00469922,80719.0,80718.0,0.00029391]
[1741893956694,0.0140422,80721.0,80720.0,0.012388]
[1741893957081,0.3,80726.0,80724.0,0.260141]
[1741893957290,0.3,80726.0,80724.0,0.012387]
[1741893957428,0.56147316,80726.0,80722.0,0.011388]
[1741893957631,0.02504679,80725.0,80723.0,0.260148]
[1741893958052,0.02504679,80725.0,80721.0,0.247766]
[1741893958414,0.26016,80720.0,80718.0,0.00029391]
[1741893958617,0.27957,80720.0,80718.0,0.00029391]
[1741893958751,0.012388,80719.0,80718.0,0.00029391]
[1741893959367,0.27957,80720.0,80718.0,0.00029391]
[1741893959612,0.01941,80720.0,80718.0,0.24806691]
[1741893959845,0.01941,80720.0,80718.0,0.26045491]
[1741893960343,0.01941,80720.0,80719.0,0.012388]
[1741893960916,0.01941,80720.0,80719.0,0.061188]
[1741893961120,0.01941,80720.0,80719.0,0.15302885]
[1741893961910,0.01941,80720.0,80719.0,0.15426763]
[1741893962112,0.01631799,80720.0,80719.0,0.15302885]
[1741893962691,0.01631799,80720.0,80719.0,0.373873]
[1741893962933,0.02097836,80720.0,80719.0,0.386261]
[1741893963137,0.01631799,80720.0,80719.0,0.386261]
[1741893964350,0.01631799,80720.0,80719.0,0.40080185]
[1741893964502,0.02530524,80728.0,80727.0,0.27467585]
[1741893964914,0.0003384,80740.0,80739.0,0.260096]
[1741893965139,0.0003384,80740.0,80739.0,0.32303685]
[1741893965513,0.0003384,80740.0,80739.0,0.06294085]
[1741893965929,0.247725,80735.0,80729.0,0.0484]
[1741893966113,0.260124,80731.0,80729.0,0.0484]
[1741893966314,0.260124,80731.0,80727.0,0.0782]
[1741893966785,0.247733,80733.0,80727.0,0.338333]
[1741893966981,0.012386,80733.0,80727.0,0.0782]
[1741893967157,0.00470166,80730.0,80727.0,0.0772]
[1741893967358,0.247745,80728.0,80727.0,0.0772]
[1741893967561,0.247745,80728.0,80719.0,0.30856]
[1741893967562,0.260154,80721.0,80719.0,0.0484]
[1741893967761,0.260161,80719.0,80718.0,0.00029391]
[1741893967983,0.26480311,80719.0,80718.0,0.00029391]
[1741893968358,0.30030229,80719.0,80718.0,0.00029391]
[1741893969031,0.26480311,80719.0,80718.0,0.00029391]
[1741893969733,0.25241511,80719.0,80718.0,0.00029391]
[1741893970018,0.30030657,80719.0,80718.0,0.00029391]
[1741893970250,0.30030657,80719.0,80718.0,0.00229391]
[1741893970455,0.60030657,80719.0,80718.0,0.00229391]
[1741893970660,0.60030657,80719.0,80699.0,0.0755]
[1741893970661,0.260218,80702.0,80699.0,0.0755]
[1741893970866,0.260222,80700.0,80699.0,0.0755]
[1741893971072,0.260222,80700.0,80698.0,0.00041467]
[1741893971073,0.312391,80699.0,80698.0,0.00041467]
[1741893971485,0.3663891,80699.0,80698.0,0.00041467]
[1741893972331,0.012394,80684.0,80683.0,0.0001691]
[1741893972534,1.09972883,80684.0,80683.0,0.0001691]
[1741893972654,1.09972883,80684.0,80659.0,0.0809]
[1741893972655,0.012395,80673.0,80665.0,0.012396]
[1741893972866,0.012395,80676.0,80668.0,0.260325]
[1741893973081,0.00437117,80672.0,80671.0,0.012796]
[1741893973276,0.312395,80677.0,80671.0,0.0004]
[1741893973477,0.00437117,80672.0,80671.0,0.0004]
[1741893973680,0.2849097,80672.0,80671.0,0.0004]
[1741893973885,0.02896887,80672.0,80671.0,0.0004]
[1741893974086,0.02896887,80672.0,80671.0,0.012796]
[1741893974488,0.0245977,80672.0,80671.0,0.012796]
[1741893974690,0.3,80683.0,80682.0,0.012394]
[1741893974893,0.78733483,80684.0,80683.0,0.25864521]
[1741893975150,0.81233512,80684.0,80683.0,0.25864521]
[1741893975314,0.81233512,80684.0,80683.0,0.247883]
[1741893975490,0.81233512,80684.0,80683.0,0.27481785]
[1741893975728,0.78733483,80684.0,80683.0,0.27481785]
[1741893976261,0.02474184,80689.0,80688.0,0.247868]
[1741893976457,0.01392307,80699.0,80694.0,0.260239]
[1741893976576,0.02631407,80699.0,80691.0,0.012392]
[1741893976795,0.02631407,80699.0,80689.0,0.012393]
[1741893976796,0.012392,80694.0,80689.0,0.012393]
[1741893977012,0.02534324,80695.0,80665.0,0.012396]
[1741893977013,0.012395,80674.0,80665.0,0.012396]
[1741893977213,0.012395,80674.0,80667.0,0.2604971]
[1741893977414,0.397757,80686.0,80678.0,0.012394]
[1741893977624,0.012393,80690.0,80685.0,0.260269]
[1741893977835,0.247859,80691.0,80680.0,0.012394]
[1741893977836,0.247865,80689.0,80680.0,0.012394]
[1741893978034,0.247865,80689.0,80681.0,0.247889]
[1741893978252,0.02544598,80686.0,80681.0,0.247889]
[1741893978452,0.02544598,80686.0,80681.0,0.260283]
[1741893978653,0.02544598,80686.0,80685.0,0.26027]
[1741893979992,0.02744598,80686.0,80685.0,0.26027]
[1741893980296,0.02844598,80686.0,80685.0,0.26027]
[1741893980471,0.02944598,80686.0,80685.0,0.26027]
[1741893980685,0.02944598,80686.0,80685.0,0.34257]
[1741893980897,0.004,80686.0,80685.0,0.34257]
[1741893981572,0.004,80686.0,80685.0,0.35711085]
[1741893981775,0.001,80686.0,80685.0,0.35711085]
[1741893982204,0.024633,80693.0,80692.0,0.260248]
[1741893983398,0.025633,80693.0,80692.0,0.260248]
[1741893983963,0.026633,80693.0,80692.0,0.260248]
[1741893984564,0.026633,80693.0,80692.0,0.247856]
[1741893984786,0.026633,80693.0,80685.0,0.260268]
[1741893984904,0.00146861,80692.0,80691.0,0.260248]
[1741893985348,0.00581994,80692.0,80691.0,0.260248]
[1741893985997,0.00581994,80692.0,80690.0,0.247861]
[1741893986180,0.00581994,80692.0,80691.0,0.012392]
[1741893986706,0.00681994,80692.0,80691.0,0.012392]
[1741893987320,0.00781994,80692.0,80691.0,0.012392]
[1741893987531,0.00781994,80692.0,80689.0,0.260255]
[1741893987731,0.00781994,80692.0,80691.0,0.260251]
[1741893987732,0.00681994,80692.0,80691.0,0.260251]
[1741893988031,0.00781994,80692.0,80690.0,0.260252]
[1741893988652,0.00781994,80692.0,80691.0,0.012392]
[1741893988787,0.00346861,80692.0,80691.0,0.012392]
[1741893988996,0.00246861,80692.0,80691.0,0.012392]
[1741893989404,0.00246861,80692.0,80691.0,0.02693285]
[1741893989651,0.00246861,80692.0,80691.0,0.15367207]
[1741893989854,9.3e-07,80694.0,80693.0,0.012392]
[1741893990091,9.3e-07,80694.0,80693.0,0.14787282]
[1741893990443,9.3e-07,80694.0,80693.0,0.22617282]
[1741893991050,9.3e-07,80694.0,80693.0,0.22817282]
[1741893992169,0.02300155,80694.0,80693.0,0.22817282]
[1741893992366,0.02300155,80694.0,80693.0,0.22693384]
[1741893992570,0.02300155,80694.0,80693.0,0.22793384]
[1741893994046,0.02334015,80694.0,80693.0,0.22793384]
[1741893994380,0.02334015,80694.0,80693.0,0.243572]
[1741893994572,0.02334015,80694.0,80693.0,0.25811285]
[1741893994791,0.02334015,80694.0,80693.0,0.243572]
[1741893994970,0.02334015,80694.0,80693.0,0.24225025]
[1741893995268,0.02334015,80694.0,80693.0,0.2567911]
[1741893998965,0.02334015,80694.0,80693.0,0.1069111]
[1741893999230,0.02334015,80694.0,80693.0,0.2567911]